Workbook

Sheet お支払について
B2: 請求書の提出及びお支払について
B3: 請求書締切日・提出日 | C3: 毎月月末締切、翌月第３営業日必着 提出期限迄に請求書が未着の場合は、翌月処理になる場合がありますのでご注意下さい。
B4: お支払日 | C4: 締切日の翌月末日支払い（末日が休日の場合は前営業日）
B5: お支払方法 | C5: 当社所定の支払い条件による
B6: *お支払に関するご不明点などについては、管理本部（03-5645-3232）までお問い合わせください。
B8: 請求書のご提出先一覧
B9: 支店・事業所 | C9: 住所 | D9: 電話番号
B10: 東北支店 | C10: 〒980-0804 宮城県仙台市青葉区大町1-3-2 仙台MDビル２F | D10: 022-221-2316
B11: 東京支店 | C11: 〒103-0012 東京都中央区日本橋堀留町1-2-10 イトーピア日本橋SAビル３Ｆ | D11: 03-5645-3236
B12: 中部支店 | C12: 〒464-0075 愛知県名古屋市千種区内山3-29-10 朝日生命千種AMビル４F | D12: 052-744-0717
B13: 西日本支店 | C13: 〒541-0046 大阪府大阪市中央区平野町2－6－6 ヒロセ平野町ビル５Ｆ | D13: 06-6233-5300
B14: 九州支店 | C14: 〒810-0011 福岡県福岡市中央区高砂1-11-1 福岡ゼネラルビル６Ｆ | D14: 092-534-8425
B15: 沖縄支店 | C15: 〒900-0033 沖縄県那覇市久米2-4-16 三井生命那覇ビル５F | D15: 098-862-8306
B16: 本社機材センター | C16: 〒265-0066 千葉県千葉市若葉区多部田町７９０ | D16: 043-226-0211
B17: 奈良機材センター | C17: 〒636-0226 奈良県磯城郡田原本町唐古２９０ | D17: 0744-33-6246
B18: ＊請求書ご提出にあたってのご不明点などについては各事業所へ直接お問い合わせ下さい。

Sheet 使い方
B2: 使い方
C3: 1. | D3: 入力は「請求書（表紙）」または「請求明細」の黄色の箇所のみおこなって下さい。
D4: それ以外の箇所は変更しないでください。また、行・列の追加、削除や書式の変更はしないでください。
C5: 2. | D5: 請求書は工事コード毎に作成し、工事コードが異なる場合には請求書も分けて作成してください。
C6: 3. | D6: 「工事コード」、「工事・工種名」、「取引先コード」を必ず記入してください。不明のときは工事部に照会してください。
C7: 4. | D7: 請求の内訳が請求書（表紙）に収まらない場合は請求明細を使用してください。
D8: 請求明細を利用する場合は請求明細に内訳を記載し、請求書（表紙）には合計金額を記入してください。
C9: 5. | D9: 請求書ご提出の際は印刷の上、「支店用」と「本社用」をご提出ください。請求明細を利用する場合は2部ご提出ください。

Sheet 請求書 (表紙)
A1: （一般請求用） | M1: （一般請求用） | Y1: （一般請求用）
B2: 成幸利根株式会社 | E2: 御中 | F2: 請 求 書 | N2: 成幸利根株式会社 | Q2: 御中 | R2: 請 求 書 | Z2: 成幸利根株式会社 | AC2: 御中 | AD2: 請 求 書
B4: 月度 | H4: 住所 | N4: 月度 | P4: =IF(D4="","",D4) ->  | T4: 住所 | U4: =IF(I4="","",I4) ->  | Z4: 月度 | AB4: =P4 ->  | AF4: 住所 | AG4: =U4 -> 
B5: 工事コード | N5: 工事コード | P5: =IF(D5="","",D5) ->  | Z5: 工事コード | AB5: =P5 -> 
B6: 工事・工種名 | H6: 社名 | N6: 工事・工種名 | P6: =IF(D6="","",D6) ->  | T6: 社名 | U6: =IF(I6="","",I6) ->  | Z6: 工事・工種名 | AB6: =P6 ->  | AF6: 社名 | AG6: =U6 -> 
B8: 請求金額 （税込） | D8: =IF(K33=0,"",K33) ->  | N8: 請求金額 （税込） | P8: =D8 ->  | U8: =IF(I8="","",I8) ->  | Z8: 請求金額 （税込） | AB8: =P8 ->  | AG8: =U8 -> 
H9: 取引先コード | T9: 取引先コード | U9: =IF(I9="","",I9) ->  | AF9: 取引先コード | AG9: =U9 -> 
C11: 日付 | D11: 内 訳 | F11: 摘 要 | H11: 数 量 | I11: 単位 | J11: 単 価 | K11: 金 額 | O11: 日付 | P11: 内 訳 | R11: 摘 要 | T11: 数 量 | U11: 単位 | V11: 単 価 | W11: 金 額 | AA11: 日付 | AB11: 内 訳 | AD11: 摘 要 | AF11: 数 量 | AG11: 単位 | AH11: 単 価 | AI11: 金 額
B12: 1 | N12: 1 | O12: =IF(C12="","",C12) ->  | Z12: 1 | AA12: =IF(O12="","",O12) ->  | AB12: =IF(P12="","",P12) ->  | AC12: =IF(Q12="","",Q12) ->  | AD12: =IF(R12="","",R12) ->  | AE12: =IF(S12="","",S12) ->  | AF12: =IF(T12="","",T12) ->  | AG12: =IF(U12="","",U12) ->  | AH12: =IF(V12="","",V12) -> 
B13: 2 | N13: 2 | O13: =IF(C13="","",C13) ->  | P13: =IF(D13="","",D13) ->  | Q13: =IF(E13="","",E13) ->  | R13: =IF(F13="","",F13) ->  | S13: =IF(G13="","",G13) ->  | T13: =IF(H13="","",H13) ->  | U13: =IF(I13="","",I13) ->  | V13: =IF(J13="","",J13) ->  | W13: =IF(K13="","",K13) ->  | Z13: 2
B14: 3 | N14: 3 | Z14: 3
B15: 4 | N15: 4 | Z15: 4
B16: 5 | N16: 5 | Z16: 5
B17: 6 | N17: 6 | Z17: 6
B18: 7 | N18: 7 | Z18: 7
B19: 8 | N19: 8 | Z19: 8
B20: 9 | N20: 9 | Z20: 9
B21: 10 | N21: 10 | Z21: 10
B22: 11 | N22: 11 | Z22: 11
B23: 12 | N23: 12 | Z23: 12
B24: 13 | N24: 13 | Z24: 13
B25: 14 | N25: 14 | Z25: 14
B26: 15 | N26: 15 | Z26: 15
B27: 16 | N27: 16 | Z27: 16
B28: 17 | N28: 17 | Z28: 17
B29: 18 | N29: 18 | Z29: 18
B30: 決 裁 | D30: 査定・承認 | H30: 受 付 | I30: 請求金額 (税抜) | K30: =SUM(K12:K29)-SUMIF(D12:E29,"（ 小 計 ）",K12:K29) -> 0 | N30: 決 裁 | P30: 査定・承認 | T30: 受 付 | U30: 請求金額 (税抜) | W30: 0 | Z30: 決 裁 | AB30: 査定・承認 | AF30: 受 付 | AG30: 請求金額 (税抜) | AI30: =IF(W30="","",W30) -> 0
I32: 消費税 | J32: 0.08 | K32: =K30*J32 -> 0 | U32: 消費税 | V32: 0.08 | W32: 0 | AG32: 消費税 | AH32: =IF(V32="","",V32) -> 0.08 | AI32: 0
I33: 請求金額 (税込) | K33: =IF(AND(K30="",K32=""),"",SUM(K30:K32)) -> 0 | U33: 請求金額 (税込) | W33: 0 | AG33: 請求金額 (税込) | AI33: 0
N34: 成幸利根使用欄
N35: 工事コード | P35: 科 目 | Q35: 作業工程 | R35: 名称/摘要 | T35: 金 額 | U35: 税率 | V35: 消費税 | W35: 税込み金額
C37: ※記入上の注意事項
C38: 1. 一現場一枚として記入し、二現場以上ある場合には現場別に請求書を作成してください。
C39: 2. 工事コード、工事・工種名、取引先コードを必ず記入してください。不明のときは工事部に照会してください。
C40: 3. 請求書、請求明細は支店用と本社用の2部を提出してください。
N43: 工事コード | P43: 立替先コード | Q43: 立替先名 | R43: 名称/摘要 | T43: 金 額 | V43: 伝票番号

Sheet 請求明細
A1: 1 | L1: ="( "&A1&" / "&$L$41&" )" -> ( 1 / 1 )
C2: （ 請 求 明 細 ）
C4: 月度 | E4: =IF('請求書 (表紙)'!$D$4="","",'請求書 (表紙)'!$D$4) -> 
C5: 工事コード | E5: =IF('請求書 (表紙)'!$D$5="","",'請求書 (表紙)'!$D$5) ->  | I5: 社名 | J5: =SUBSTITUTE(SUBSTITUTE('請求書 (表紙)'!$I$7&" "&'請求書 (表紙)'!$I$8,"株式会社","㈱"),"有限会社","㈲") -> 
C6: 工事・工種名 | E6: =IF('請求書 (表紙)'!$D$6="","",'請求書 (表紙)'!$D$6) ->  | I6: 取引先コード | J6: =IF('請求書 (表紙)'!$I$9="","",'請求書 (表紙)'!$I$9) -> 
D8: 日付 | E8: 内 訳 | G8: 摘 要 | I8: 数 量 | J8: 単位 | K8: 単 価 | L8: 金 額
A9: 1 | C9: 1
A10: 1 | C10: 2
A11: 1 | C11: 3
A12: 1 | C12: 4
A13: 1 | C13: 5
A14: 1 | C14: 6
A15: 1 | C15: 7
A16: 1 | C16: 8
A17: 1 | C17: 9
A18: 1 | C18: 10
A19: 1 | C19: 11
A20: 1 | C20: 12
A21: 1 | C21: 13
A22: 1 | C22: 14
A23: 1 | C23: 15
A24: 1 | C24: 16
A25: 1 | C25: 17
A26: 1 | C26: 18
A27: 1 | C27: 19
A28: 1 | C28: 20
A29: 1 | C29: 21
A30: 1 | C30: 22
A31: 1 | C31: 23
A32: 1 | C32: 24
A33: 1 | C33: 25
A34: 1 | C34: 26
A35: 1 | C35: 27
A36: 1 | C36: 28
I37: ページ 計 | L37: =SUM(L9:L36)-SUMIF(E9:F36,"（ 小 計 ）",L9:L36) -> 0
L40: ページ数
L41: =MAX(A:A) -> 1
L75: =SUM(L47:L74)-SUMIF(E47:F74,"（ 小 計 ）",L47:L74) -> 0

Sheet 記入例（請求明細なし）
A1: （一般請求用） | M1: （一般請求用） | Y1: （一般請求用）
B2: 成幸利根株式会社 | E2: 御中 | F2: 請 求 書 | N2: 成幸利根株式会社 | Q2: 御中 | R2: 請 求 書 | Z2: 成幸利根株式会社 | AC2: 御中 | AD2: 請 求 書
B4: 月度 | D4: 2016-07-01 | H4: 住所 | I4: 東京都○○区□□1-1 | N4: 月度 | P4: =D4 -> 2016-07-01 | T4: 住所 | U4: =I4 -> 東京都○○区□□1-1 | Z4: 月度 | AB4: =P4 -> 2016-07-01 | AF4: 住所 | AG4: =U4 -> 東京都○○区□□1-1
B5: 工事コード | D5: 100001-0001 | N5: 工事コード | P5: =IF(D5="","",D5) -> 100001-0001 | Z5: 工事コード | AB5: =IF(P5="","",P5) -> 100001-0001
B6: 工事・工種名 | D6: ○○立坑SMW | H6: 社名 | I6: ○○産業株式会社 | N6: 工事・工種名 | P6: =IF(D6="","",D6) -> ○○立坑SMW | T6: 社名 | U6: =I6 -> ○○産業株式会社 | Z6: 工事・工種名 | AB6: =IF(P6="","",P6) -> ○○立坑SMW | AF6: 社名 | AG6: =U6 -> ○○産業株式会社
B8: 請求金額 （税込） | D8: =K33 -> 2678400 | I8: □□支店 | N8: 請求金額 （税込） | P8: =D8 -> 2678400 | U8: =IF(I8="","",I8) -> □□支店 | Z8: 請求金額 （税込） | AB8: =P8 -> 2678400 | AG8: =IF(U8="","",U8) -> □□支店
H9: 取引先コード | I9: 5029800 | T9: 取引先コード | U9: =I9 -> 5029800 | AF9: 取引先コード | AG9: =U9 -> 5029800
C11: 日付 | D11: 内 訳 | F11: 摘 要 | H11: 数量 | I11: 単位 | J11: 単価 | K11: 金 額 | O11: 日付 | P11: 内 訳 | R11: 摘 要 | T11: 数量 | U11: 単位 | V11: 単価 | W11: 金 額 | AA11: 日付 | AB11: 内 訳 | AD11: 摘 要 | AF11: 数量 | AG11: 単位 | AH11: 単価 | AI11: 金 額
B12: 1 | C12: 2016-07-01 | D12: 材料A | H12: 100 | I12: kg | J12: 3000 | K12: =H12*J12 -> 300000 | N12: 1 | O12: =IF(C12="","",C12) -> 2016-07-01 | P12: 材料A | T12: 100 | U12: kg | V12: 3000 | W12: 300000 | Z12: 1 | AA12: =IF(O12="","",O12) -> 2016-07-01 | AB12: 材料A | AF12: 100 | AG12: kg | AH12: 3000 | AI12: 300000
B13: 2 | D13: 材料B | H13: 200 | I13: kg | J13: 2000 | K13: =H13*J13 -> 400000 | N13: 2 | P13: 材料B | T13: 200 | U13: kg | V13: 2000 | W13: 400000 | Z13: 2 | AB13: 材料B | AF13: 200 | AG13: kg | AH13: 2000 | AI13: 400000
B14: 3 | D14: 送料 | H14: 1 | I14: 式 | J14: 10000 | K14: =H14*J14 -> 10000 | N14: 3 | P14: 送料 | T14: 1 | U14: 式 | V14: 10000 | W14: 10000 | Z14: 3 | AB14: 送料 | AF14: 1 | AG14: 式 | AH14: 10000 | AI14: 10000
B15: 4 | D15: （ 小 計 ） | K15: =SUM(K12:K14) -> 710000 | N15: 4 | P15: （ 小 計 ） | W15: 710000 | Z15: 4 | AB15: （ 小 計 ） | AI15: 710000
B16: 5 | N16: 5 | Z16: 5
B17: 6 | C17: 2016-07-10 | D17: 材料A | H17: 150 | I17: kg | J17: 3000 | K17: =H17*J17 -> 450000 | N17: 6 | O17: 2016-07-10 | P17: 材料A | T17: 150 | U17: kg | V17: 3000 | W17: 450000 | Z17: 6 | AA17: 2016-07-10 | AB17: 材料A | AF17: 150 | AG17: kg | AH17: 3000 | AI17: 450000
B18: 7 | D18: 材料B | H18: 100 | I18: kg | J18: 2000 | K18: =H18*J18 -> 200000 | N18: 7 | P18: 材料B | T18: 100 | U18: kg | V18: 2000 | W18: 200000 | Z18: 7 | AB18: 材料B | AF18: 100 | AG18: kg | AH18: 2000 | AI18: 200000
B19: 8 | D19: 送料 | H19: 1 | I19: 式 | J19: 10000 | K19: =H19*J19 -> 10000 | N19: 8 | P19: 送料 | T19: 1 | U19: 式 | V19: 10000 | W19: 10000 | Z19: 8 | AB19: 送料 | AF19: 1 | AG19: 式 | AH19: 10000 | AI19: 10000
B20: 9 | D20: （ 小 計 ） | K20: =SUM(K17:K19) -> 660000 | N20: 9 | P20: （ 小 計 ） | W20: 660000 | Z20: 9 | AB20: （ 小 計 ） | AI20: 660000
B21: 10 | N21: 10 | Z21: 10
B22: 11 | C22: 2016-07-20 | D22: 材料C | F22: φ20×1000mm | H22: 100 | I22: 本 | J22: 8000 | K22: =H22*J22 -> 800000 | N22: 11 | O22: 2016-07-20 | P22: 材料C | R22: φ20×1000mm | T22: 100 | U22: 本 | V22: 8000 | W22: 800000 | Z22: 11 | AA22: 2016-07-20 | AB22: 材料C | AD22: φ20×1000mm | AF22: 100 | AG22: 本 | AH22: 8000 | AI22: 800000
B23: 12 | D23: 材料D | F23: 300×200×1000 | H23: 20 | I23: 個 | J23: 15000 | K23: =H23*J23 -> 300000 | N23: 12 | P23: 材料D | R23: 300×200×1000 | T23: 20 | U23: 個 | V23: 15000 | W23: 300000 | Z23: 12 | AB23: 材料D | AD23: 300×200×1000 | AF23: 20 | AG23: 個 | AH23: 15000 | AI23: 300000
B24: 13 | D24: 送料 | H24: 1 | I24: 式 | J24: 10000 | K24: =H24*J24 -> 10000 | N24: 13 | P24: 送料 | T24: 1 | U24: 式 | V24: 10000 | W24: 10000 | Z24: 13 | AB24: 送料 | AF24: 1 | AG24: 式 | AH24: 10000 | AI24: 10000
B25: 14 | D25: （ 小 計 ） | K25: =SUM(K22:K24) -> 1110000 | N25: 14 | P25: （ 小 計 ） | W25: 1110000 | Z25: 14 | AB25: （ 小 計 ） | AI25: 1110000
B26: 15 | N26: 15 | Z26: 15
B27: 16 | N27: 16 | Z27: 16
B28: 17 | N28: 17 | O28: =IF(C28="","",C28) ->  | Z28: 17
B29: 18 | N29: 18 | Z29: 18
B30: 決 裁 | D30: 査定・承認 | H30: 受 付 | I30: 請求金額 (税抜) | K30: =SUM(K12:K29)-SUMIF(D12:E29,"（ 小 計 ）",K12:K29) -> 2480000 | N30: 決 裁 | P30: 査定・承認 | T30: 受 付 | U30: 請求金額 (税抜) | W30: 2480000 | Z30: 決 裁 | AB30: 査定・承認 | AF30: 受 付 | AG30: 請求金額 (税抜) | AI30: =IF(W30="","",W30) -> 2480000
I32: 消費税 | J32: 0.08 | K32: =K30*J32 -> 198400 | U32: 消費税 | V32: 0.08 | W32: 198400 | AG32: 消費税 | AH32: =IF(V32="","",V32) -> 0.08 | AI32: 198400
I33: 請求金額 (税込) | K33: =SUM(K30:K32) -> 2678400 | U33: 請求金額 (税込) | W33: 2678400 | AG33: 請求金額 (税込) | AI33: 2678400
N34: 成幸利根使用欄
N35: 工事コード | P35: 科 目 | Q35: 作業工程 | R35: 名称/摘要 | T35: 金 額 | U35: 税率 | V35: 消費税 | W35: 税込み金額
C37: ※記入上の注意事項
C38: 1. 一現場一枚として記入し、二現場以上ある場合には現場別に請求書を作成してください。
C39: 2. 工事コード、工事・工種名、取引先コードを必ず記入してください。不明のときは工事部に照会してください。
C40: 3. 請求書、請求明細は支店用と本社用の2部を提出してください。
N43: 工事コード | P43: 立替先コード | Q43: 立替先名 | R43: 名称/摘要 | T43: 金 額 | V43: 伝票番号

Sheet 記入例 （請求明細あり）
A1: （一般請求用） | M1: （一般請求用） | Y1: （一般請求用）
B2: 成幸利根株式会社 | E2: 御中 | F2: 請 求 書 | N2: 成幸利根株式会社 | Q2: 御中 | R2: 請 求 書 | Z2: 成幸利根株式会社 | AC2: 御中 | AD2: 請 求 書
B4: 月度 | D4: 2016-07-01 | H4: 住所 | I4: 東京都○○区□□1-1 | N4: 月度 | P4: =D4 -> 2016-07-01 | T4: 住所 | U4: =I4 -> 東京都○○区□□1-1 | Z4: 月度 | AB4: =P4 -> 2016-07-01 | AF4: 住所 | AG4: =U4 -> 東京都○○区□□1-1
B5: 工事コード | D5: 100001-0001 | N5: 工事コード | P5: =IF(D5="","",D5) -> 100001-0001 | Z5: 工事コード | AB5: =IF(P5="","",P5) -> 100001-0001
B6: 工事・工種名 | D6: ○○立坑SMW | H6: 社名 | I6: ○○産業株式会社 | N6: 工事・工種名 | P6: =IF(D6="","",D6) -> ○○立坑SMW | T6: 社名 | U6: =I6 -> ○○産業株式会社 | Z6: 工事・工種名 | AB6: =IF(P6="","",P6) -> ○○立坑SMW | AF6: 社名 | AG6: =U6 -> ○○産業株式会社
B8: 請求金額 （税込） | D8: =K33 -> 3726000 | I8: □□支店 | N8: 請求金額 （税込） | P8: =D8 -> 3726000 | U8: =IF(I8="","",I8) -> □□支店 | Z8: 請求金額 （税込） | AB8: =P8 -> 3726000 | AG8: =IF(U8="","",U8) -> □□支店
H9: 取引先コード | I9: 1234567 | T9: 取引先コード | U9: =I9 -> 1234567 | AF9: 取引先コード | AG9: =U9 -> 1234567
C11: 日付 | D11: 内 訳 | F11: 摘 要 | H11: 数量 | I11: 単位 | J11: 単価 | K11: 金 額 | O11: 日付 | P11: 内 訳 | R11: 摘 要 | T11: 数量 | U11: 単位 | V11: 単価 | W11: 金 額 | AA11: 日付 | AB11: 内 訳 | AD11: 摘 要 | AF11: 数量 | AG11: 単位 | AH11: 単価 | AI11: 金 額
B12: 1 | C12: 2016-07-31 | D12: 材料一式 | H12: 1 | I12: 式 | J12: 3450000 | K12: =H12*J12 -> 3450000 | N12: 1 | O12: =IF(C12="","",C12) -> 2016-07-31 | P12: 材料一式 | T12: 1 | U12: 式 | V12: 3450000 | W12: 3450000 | Z12: 1 | AA12: =IF(O12="","",O12) -> 2016-07-31 | AB12: 材料一式 | AF12: 1 | AG12: 式 | AH12: 3450000 | AI12: 3450000
B13: 2 | N13: 2 | Z13: 2
B14: 3 | N14: 3 | Z14: 3
B15: 4 | N15: 4 | Z15: 4
B16: 5 | N16: 5 | Z16: 5
B17: 6 | N17: 6 | Z17: 6
B18: 7 | N18: 7 | Z18: 7
B19: 8 | N19: 8 | Z19: 8
B20: 9 | N20: 9 | Z20: 9
B21: 10 | N21: 10 | Z21: 10
B22: 11 | N22: 11 | Z22: 11
B23: 12 | N23: 12 | Z23: 12
B24: 13 | N24: 13 | Z24: 13
B25: 14 | N25: 14 | Z25: 14
B26: 15 | N26: 15 | Z26: 15
B27: 16 | N27: 16 | Z27: 16
B28: 17 | N28: 17 | O28: =IF(C28="","",C28) ->  | Z28: 17
B29: 18 | N29: 18 | Z29: 18
B30: 決 裁 | D30: 査定・承認 | H30: 受 付 | I30: 請求金額 (税抜) | K30: =SUM(K12:K29)-SUMIF(D12:E29,"（ 小 計 ）",K12:K29) -> 3450000 | N30: 決 裁 | P30: 査定・承認 | T30: 受 付 | U30: 請求金額 (税抜) | W30: 3450000 | Z30: 決 裁 | AB30: 査定・承認 | AF30: 受 付 | AG30: 請求金額 (税抜) | AI30: =IF(W30="","",W30) -> 3450000
I32: 消費税 | J32: 0.08 | K32: =K30*J32 -> 276000 | U32: 消費税 | V32: 0.08 | W32: 276000 | AG32: 消費税 | AH32: =IF(V32="","",V32) -> 0.08 | AI32: 276000
I33: 請求金額 (税込) | K33: =SUM(K30:K32) -> 3726000 | U33: 請求金額 (税込) | W33: 3726000 | AG33: 請求金額 (税込) | AI33: 3726000
N34: 成幸利根使用欄
N35: 工事コード | P35: 科 目 | Q35: 作業工程 | R35: 名称/摘要 | T35: 金 額 | U35: 税率 | V35: 消費税 | W35: 税込み金額
C37: ※記入上の注意事項
C38: 1. 一現場一枚として記入し、二現場以上ある場合には現場別に請求書を作成してください。
C39: 2. 工事コード、工事・工種名、取引先コードを必ず記入してください。不明のときは工事部に照会してください。
C40: 3. 請求書、請求明細は支店用と本社用の2部を提出してください。
N43: 工事コード | P43: 立替先コード | Q43: 立替先名 | R43: 名称/摘要 | T43: 金 額 | V43: 伝票番号

Sheet 記入例（請求明細）
A1: 1 | L1: ="( "&A1&" / "&$L$41&" )" -> ( 1 / 1 )
C2: （ 請 求 明 細 ）
C4: 月度 | E4: ='記入例 （請求明細あり）'!D4 -> 2016-07-01
C5: 工事コード | E5: ='記入例 （請求明細あり）'!D5 -> 100001-0001 | I5: 社名 | J5: =SUBSTITUTE(SUBSTITUTE('記入例 （請求明細あり）'!I6&" "&'記入例 （請求明細あり）'!I8,"株式会社","㈱"),"有限会社","㈲") -> ○○産業㈱ □□支店
C6: 工事・工種名 | E6: ='記入例 （請求明細あり）'!D6 -> ○○立坑SMW | I6: 取引先コード | J6: ='記入例 （請求明細あり）'!I9 -> 1234567
D8: 日付 | E8: 内 訳 | G8: 摘 要 | I8: 数 量 | J8: 単位 | K8: 単 価 | L8: 金 額
A9: 1 | C9: 1 | D9: 2016-07-01 | E9: 材料A | I9: 100 | J9: kg | K9: 3000 | L9: =I9*K9 -> 300000
A10: 1 | C10: 2 | E10: 材料B | I10: 200 | J10: kg | K10: 2000 | L10: =I10*K10 -> 400000
A11: 1 | C11: 3 | E11: 送料 | I11: 1 | J11: 式 | K11: 10000 | L11: =I11*K11 -> 10000
A12: 1 | C12: 4 | E12: （ 小 計 ） | L12: =SUM(L9:L11) -> 710000
A13: 1 | C13: 5
A14: 1 | C14: 6 | D14: 2016-07-10 | E14: 材料A | I14: 150 | J14: kg | K14: 3000 | L14: =I14*K14 -> 450000
A15: 1 | C15: 7 | E15: 材料B | I15: 100 | J15: kg | K15: 2000 | L15: =I15*K15 -> 200000
A16: 1 | C16: 8 | E16: 送料 | I16: 1 | J16: 式 | K16: 10000 | L16: =I16*K16 -> 10000
A17: 1 | C17: 9 | E17: （ 小 計 ） | L17: =SUM(L14:L16) -> 660000
A18: 1 | C18: 10
A19: 1 | C19: 11 | D19: 2016-07-20 | E19: 材料C | G19: φ20×1000mm | I19: 100 | J19: 本 | K19: 8000 | L19: =I19*K19 -> 800000
A20: 1 | C20: 12 | E20: 材料D | G20: 300×200×1000 | I20: 20 | J20: 個 | K20: 15000 | L20: =I20*K20 -> 300000
A21: 1 | C21: 13 | E21: 送料 | I21: 1 | J21: 式 | K21: 10000 | L21: =I21*K21 -> 10000
A22: 1 | C22: 14 | E22: （ 小 計 ） | L22: =SUM(L19:L21) -> 1110000
A23: 1 | C23: 15
A24: 1 | C24: 16 | D24: 2016-07-30 | E24: 材料A | I24: 200 | J24: kg | K24: 3000 | L24: =I24*K24 -> 600000
A25: 1 | C25: 17 | E25: 材料B | I25: 180 | J25: kg | K25: 2000 | L25: =I25*K25 -> 360000
A26: 1 | C26: 18 | E26: 送料 | I26: 1 | J26: 式 | K26: 10000 | L26: =I26*K26 -> 10000
A27: 1 | C27: 19 | E27: （ 小 計 ） | L27: =SUM(L24:L26) -> 970000
A28: 1 | C28: 20
A29: 1 | C29: 21
A30: 1 | C30: 22
A31: 1 | C31: 23
A32: 1 | C32: 24
A33: 1 | C33: 25
A34: 1 | C34: 26
A35: 1 | C35: 27
A36: 1 | C36: 28
I37: ページ 計 | L37: =SUM(L9:L36)-SUMIF(E9:F36,"（ 小 計 ）",L9:L36) -> 3450000
L40: ページ数
L41: =MAX(A:A) -> 1

Sheet コード39 (hidden)
S1: 1 | AF1: 2 | AS1: 3 | DS1: 9 | EF1: 10 | ES1: 11 | FF1: 12 | FS1: 13 | GF1: 14 | GS1: 15 | HF1: 16 | HS1: 17 | IF1: 18 | IS1: 19 | JF1: 20
A2: No. | B2: 名称 | C2: コード | D2: バーコードイメージ
C3: =IF(AND('請求書 (表紙)'!$AG$9="",'請求書 (表紙)'!$AB$8=""),"",'請求書 (表紙)'!$AG$9&"-"&'請求書 (表紙)'!$AB$8) -> 
F5: =IF($C3="","",Start39) ->  | S5: =IF(MID($C3,1,1)="","",INDEX(Area39,MATCH(MID($C3,1,1),Char39,0),0)) ->  | AF5: =IF(MID($C3,2,1)="",IF(LEN($C3)=1,Start39,""),INDEX(Area39,MATCH(MID($C3,2,1),Char39,0),0)) ->  | AS5: =IF(MID($C3,3,1)="",IF(LEN($C3)=2,Start39,""),INDEX(Area39,MATCH(MID($C3,3,1),Char39,0),0)) ->  | BF5: =IF(MID($C3,4,1)="",IF(LEN($C3)=3,Start39,""),INDEX(Area39,MATCH(MID($C3,4,1),Char39,0),0)) ->  | BS5: =IF(MID($C3,5,1)="",IF(LEN($C3)=4,Start39,""),INDEX(Area39,MATCH(MID($C3,5,1),Char39,0),0)) ->  | CF5: =IF(MID($C3,6,1)="",IF(LEN($C3)=5,Start39,""),INDEX(Area39,MATCH(MID($C3,6,1),Char39,0),0)) ->  | CS5: =IF(MID($C3,7,1)="",IF(LEN($C3)=6,Start39,""),INDEX(Area39,MATCH(MID($C3,7,1),Char39,0),0)) ->  | DF5: =IF(MID($C3,8,1)="",IF(LEN($C3)=7,Start39,""),INDEX(Area39,MATCH(MID($C3,8,1),Char39,0),0)) ->  | DS5: =IF(MID($C3,9,1)="",IF(LEN($C3)=8,Start39,""),INDEX(Area39,MATCH(MID($C3,9,1),Char39,0),0)) ->  | EF5: =IF(MID($C3,10,1)="",IF(LEN($C3)=9,Start39,""),INDEX(Area39,MATCH(MID($C3,10,1),Char39,0),0)) ->  | ES5: =IF(MID($C3,11,1)="",IF(LEN($C3)=10,Start39,""),INDEX(Area39,MATCH(MID($C3,11,1),Char39,0),0)) ->  | FF5: =IF(MID($C3,12,1)="",IF(LEN($C3)=11,Start39,""),INDEX(Area39,MATCH(MID($C3,12,1),Char39,0),0)) ->  | FS5: =IF(MID($C3,13,1)="",IF(LEN($C3)=12,Start39,""),INDEX(Area39,MATCH(MID($C3,13,1),Char39,0),0)) ->  | GF5: =IF(MID($C3,14,1)="",IF(LEN($C3)=13,Start39,""),INDEX(Area39,MATCH(MID($C3,14,1),Char39,0),0)) ->  | GS5: =IF(MID($C3,15,1)="",IF(LEN($C3)=14,Start39,""),INDEX(Area39,MATCH(MID($C3,15,1),Char39,0),0)) ->  | HF5: =IF(MID($C3,16,1)="",IF(LEN($C3)=15,Start39,""),INDEX(Area39,MATCH(MID($C3,16,1),Char39,0),0)) ->  | HS5: =IF(MID($C3,17,1)="",IF(LEN($C3)=16,Start39,""),INDEX(Area39,MATCH(MID($C3,17,1),Char39,0),0)) ->  | IF5: =IF(MID($C3,18,1)="",IF(LEN($C3)=17,Start39,""),INDEX(Area39,MATCH(MID($C3,18,1),Char39,0),0)) ->  | IS5: =IF(MID($C3,19,1)="",IF(LEN($C3)=18,Start39,""),INDEX(Area39,MATCH(MID($C3,19,1),Char39,0),0)) ->  | JF5: =IF(MID($C3,20,1)="",IF(LEN($C3)=19,Start39,""),INDEX(Area39,MATCH(MID($C3,20,1),Char39,0),0)) ->  | JS5: =IF(LEN(C3)=20,Start39,"") -> 
B9: 記入例 | C9: ='記入例（請求明細なし）'!AG9&"-"&'記入例（請求明細なし）'!AB8 -> 5029800-2678400
F11: =IF($C9="","",Start39) -> 1 | G11: 0 | H11: 0 | I11: 1 | J11: 0 | K11: 1 | L11: 1 | M11: 0 | N11: 1 | O11: 1 | P11: 0 | Q11: 1 | S11: =IF(MID($C9,1,1)="","",INDEX(Area39,MATCH(MID($C9,1,1),Char39,0),0)) -> 1 | T11: 1 | U11: 0 | V11: 1 | W11: 0 | X11: 0 | Y11: 1 | Z11: 1 | AA11: 0 | AB11: 1 | AC11: 0 | AD11: 1 | AF11: =IF(MID($C9,2,1)="",IF(LEN($C9)=1,Start39,""),INDEX(Area39,MATCH(MID($C9,2,1),Char39,0),0)) -> 1 | AG11: 0 | AH11: 1 | AI11: 0 | AJ11: 0 | AK11: 1 | AL11: 1 | AM11: 0 | AN11: 1 | AO11: 1 | AP11: 0 | AQ11: 1 | AS11: =IF(MID($C9,3,1)="",IF(LEN($C9)=2,Start39,""),INDEX(Area39,MATCH(MID($C9,3,1),Char39,0),0)) -> 1 | AT11: 0 | AU11: 1 | AV11: 1 | AW11: 0 | AX11: 0 | AY11: 1 | AZ11: 0 | BA11: 1 | BB11: 0 | BC11: 1 | BD11: 1 | BF11: =IF(MID($C9,4,1)="",IF(LEN($C9)=3,Start39,""),INDEX(Area39,MATCH(MID($C9,4,1),Char39,0),0)) -> 1 | BG11: 0 | BH11: 1 | BI11: 1 | BJ11: 0 | BK11: 0 | BL11: 1 | BM11: 0 | BN11: 1 | BO11: 1 | BP11: 0 | BQ11: 1 | BS11: =IF(MID($C9,5,1)="",IF(LEN($C9)=4,Start39,""),INDEX(Area39,MATCH(MID($C9,5,1),Char39,0),0)) -> 1 | BT11: 1 | BU11: 0 | BV11: 1 | BW11: 0 | BX11: 0 | BY11: 1 | BZ11: 0 | CA11: 1 | CB11: 1 | CC11: 0 | CD11: 1 | CF11: =IF(MID($C9,6,1)="",IF(LEN($C9)=5,Start39,""),INDEX(Area39,MATCH(MID($C9,6,1),Char39,0),0)) -> 1 | CG11: 0 | CH11: 1 | CI11: 0 | CJ11: 0 | CK11: 1 | CL11: 1 | CM11: 0 | CN11: 1 | CO11: 1 | CP11: 0 | CQ11: 1 | CS11: =IF(MID($C9,7,1)="",IF(LEN($C9)=6,Start39,""),INDEX(Area39,MATCH(MID($C9,7,1),Char39,0),0)) -> 1 | CT11: 0 | CU11: 1 | CV11: 0 | CW11: 0 | CX11: 1 | CY11: 1 | CZ11: 0 | DA11: 1 | DB11: 1 | DC11: 0 | DD11: 1 | DF11: =IF(MID($C9,8,1)="",IF(LEN($C9)=7,Start39,""),INDEX(Area39,MATCH(MID($C9,8,1),Char39,0),0)) -> 1 | DG11: 0 | DH11: 0 | DI11: 1 | DJ11: 0 | DK11: 1 | DL11: 0 | DM11: 1 | DN11: 1 | DO11: 0 | DP11: 1 | DQ11: 1 | DS11: =IF(MID($C9,9,1)="",IF(LEN($C9)=8,Start39,""),INDEX(Area39,MATCH(MID($C9,9,1),Char39,0),0)) -> 1 | DT11: 0 | DU11: 1 | DV11: 1 | DW11: 0 | DX11: 0 | DY11: 1 | DZ11: 0 | EA11: 1 | EB11: 0 | EC11: 1 | ED11: 1 | EF11: =IF(MID($C9,10,1)="",IF(LEN($C9)=9,Start39,""),INDEX(Area39,MATCH(MID($C9,10,1),Char39,0),0)) -> 1 | EG11: 0 | EH11: 1 | EI11: 1 | EJ11: 0 | EK11: 0 | EL11: 1 | EM11: 1 | EN11: 0 | EO11: 1 | EP11: 0 | EQ11: 1 | ES11: =IF(MID($C9,11,1)="",IF(LEN($C9)=10,Start39,""),INDEX(Area39,MATCH(MID($C9,11,1),Char39,0),0)) -> 1 | ET11: 0 | EU11: 1 | EV11: 0 | EW11: 0 | EX11: 1 | EY11: 0 | EZ11: 1 | FA11: 1 | FB11: 0 | FC11: 1 | FD11: 1 | FF11: =IF(MID($C9,12,1)="",IF(LEN($C9)=11,Start39,""),INDEX(Area39,MATCH(MID($C9,12,1),Char39,0),0)) -> 1 | FG11: 1 | FH11: 0 | FI11: 1 | FJ11: 0 | FK11: 0 | FL11: 1 | FM11: 0 | FN11: 1 | FO11: 1 | FP11: 0 | FQ11: 1 | FS11: =IF(MID($C9,13,1)="",IF(LEN($C9)=12,Start39,""),INDEX(Area39,MATCH(MID($C9,13,1),Char39,0),0)) -> 1 | FT11: 0 | FU11: 1 | FV11: 0 | FW11: 0 | FX11: 1 | FY11: 1 | FZ11: 0 | GA11: 1 | GB11: 0 | GC11: 1 | GD11: 1 | GF11: =IF(MID($C9,14,1)="",IF(LEN($C9)=13,Start39,""),INDEX(Area39,MATCH(MID($C9,14,1),Char39,0),0)) -> 1 | GG11: 0 | GH11: 1 | GI11: 0 | GJ11: 0 | GK11: 1 | GL11: 1 | GM11: 0 | GN11: 1 | GO11: 1 | GP11: 0 | GQ11: 1 | GS11: =IF(MID($C9,15,1)="",IF(LEN($C9)=14,Start39,""),INDEX(Area39,MATCH(MID($C9,15,1),Char39,0),0)) -> 1 | GT11: 0 | GU11: 1 | GV11: 0 | GW11: 0 | GX11: 1 | GY11: 1 | GZ11: 0 | HA11: 1 | HB11: 1 | HC11: 0 | HD11: 1 | HF11: =IF(MID($C9,16,1)="",IF(LEN($C9)=15,Start39,""),INDEX(Area39,MATCH(MID($C9,16,1),Char39,0),0)) -> 1 | HG11: 0 | HH11: 0 | HI11: 1 | HJ11: 0 | HK11: 1 | HL11: 1 | HM11: 0 | HN11: 1 | HO11: 1 | HP11: 0 | HQ11: 1 | HS11: =IF(MID($C9,17,1)="",IF(LEN($C9)=16,Start39,""),INDEX(Area39,MATCH(MID($C9,17,1),Char39,0),0)) ->  | IF11: =IF(MID($C9,18,1)="",IF(LEN($C9)=17,Start39,""),INDEX(Area39,MATCH(MID($C9,18,1),Char39,0),0)) ->  | IS11: =IF(MID($C9,19,1)="",IF(LEN($C9)=18,Start39,""),INDEX(Area39,MATCH(MID($C9,19,1),Char39,0),0)) ->  | JF11: =IF(MID($C9,20,1)="",IF(LEN($C9)=19,Start39,""),INDEX(Area39,MATCH(MID($C9,20,1),Char39,0),0)) ->  | JS11: =IF(LEN(C9)=20,Start39,"") -> 

Sheet パターンデータ (hidden)
B1: コード39の符号
B2: 文字 | C2: 符号
B3: 0 | C3: 1 | D3: 0 | E3: 1 | F3: 0 | G3: 0 | H3: 1 | I3: 1 | J3: 0 | K3: 1 | L3: 1 | M3: 0 | N3: 1
B4: 1 | C4: 1 | D4: 1 | E4: 0 | F4: 1 | G4: 0 | H4: 0 | I4: 1 | J4: 0 | K4: 1 | L4: 0 | M4: 1 | N4: 1
B5: 2 | C5: 1 | D5: 0 | E5: 1 | F5: 1 | G5: 0 | H5: 0 | I5: 1 | J5: 0 | K5: 1 | L5: 0 | M5: 1 | N5: 1
B6: 3 | C6: 1 | D6: 1 | E6: 0 | F6: 1 | G6: 1 | H6: 0 | I6: 0 | J6: 1 | K6: 0 | L6: 1 | M6: 0 | N6: 1
B7: 4 | C7: 1 | D7: 0 | E7: 1 | F7: 0 | G7: 0 | H7: 1 | I7: 1 | J7: 0 | K7: 1 | L7: 0 | M7: 1 | N7: 1
B8: 5 | C8: 1 | D8: 1 | E8: 0 | F8: 1 | G8: 0 | H8: 0 | I8: 1 | J8: 1 | K8: 0 | L8: 1 | M8: 0 | N8: 1
B9: 6 | C9: 1 | D9: 0 | E9: 1 | F9: 1 | G9: 0 | H9: 0 | I9: 1 | J9: 1 | K9: 0 | L9: 1 | M9: 0 | N9: 1
B10: 7 | C10: 1 | D10: 0 | E10: 1 | F10: 0 | G10: 0 | H10: 1 | I10: 0 | J10: 1 | K10: 1 | L10: 0 | M10: 1 | N10: 1
B11: 8 | C11: 1 | D11: 1 | E11: 0 | F11: 1 | G11: 0 | H11: 0 | I11: 1 | J11: 0 | K11: 1 | L11: 1 | M11: 0 | N11: 1
B12: 9 | C12: 1 | D12: 0 | E12: 1 | F12: 1 | G12: 0 | H12: 0 | I12: 1 | J12: 0 | K12: 1 | L12: 1 | M12: 0 | N12: 1
B13: A | C13: 1 | D13: 1 | E13: 0 | F13: 1 | G13: 0 | H13: 1 | I13: 0 | J13: 0 | K13: 1 | L13: 0 | M13: 1 | N13: 1
B14: B | C14: 1 | D14: 0 | E14: 1 | F14: 1 | G14: 0 | H14: 1 | I14: 0 | J14: 0 | K14: 1 | L14: 0 | M14: 1 | N14: 1
B15: C | C15: 1 | D15: 1 | E15: 0 | F15: 1 | G15: 1 | H15: 0 | I15: 1 | J15: 0 | K15: 0 | L15: 1 | M15: 0 | N15: 1
B16: D | C16: 1 | D16: 0 | E16: 1 | F16: 0 | G16: 1 | H16: 1 | I16: 0 | J16: 0 | K16: 1 | L16: 0 | M16: 1 | N16: 1
B17: E | C17: 1 | D17: 1 | E17: 0 | F17: 1 | G17: 0 | H17: 1 | I17: 1 | J17: 0 | K17: 0 | L17: 1 | M17: 0 | N17: 1
B18: F | C18: 1 | D18: 0 | E18: 1 | F18: 1 | G18: 0 | H18: 1 | I18: 1 | J18: 0 | K18: 0 | L18: 1 | M18: 0 | N18: 1
B19: G | C19: 1 | D19: 0 | E19: 1 | F19: 0 | G19: 1 | H19: 0 | I19: 0 | J19: 1 | K19: 1 | L19: 0 | M19: 1 | N19: 1
B20: H | C20: 1 | D20: 1 | E20: 0 | F20: 1 | G20: 0 | H20: 1 | I20: 0 | J20: 0 | K20: 1 | L20: 1 | M20: 0 | N20: 1
B21: I | C21: 1 | D21: 0 | E21: 1 | F21: 1 | G21: 0 | H21: 1 | I21: 0 | J21: 0 | K21: 1 | L21: 1 | M21: 0 | N21: 1
B22: J | C22: 1 | D22: 0 | E22: 1 | F22: 0 | G22: 1 | H22: 1 | I22: 0 | J22: 0 | K22: 1 | L22: 1 | M22: 0 | N22: 1
B23: K | C23: 1 | D23: 1 | E23: 0 | F23: 1 | G23: 0 | H23: 1 | I23: 0 | J23: 1 | K23: 0 | L23: 0 | M23: 1 | N23: 1
B24: L | C24: 1 | D24: 0 | E24: 1 | F24: 1 | G24: 0 | H24: 1 | I24: 0 | J24: 1 | K24: 0 | L24: 0 | M24: 1 | N24: 1
B25: M | C25: 1 | D25: 1 | E25: 0 | F25: 1 | G25: 1 | H25: 0 | I25: 1 | J25: 0 | K25: 1 | L25: 0 | M25: 0 | N25: 1
B26: N | C26: 1 | D26: 0 | E26: 1 | F26: 0 | G26: 1 | H26: 1 | I26: 0 | J26: 1 | K26: 0 | L26: 0 | M26: 1 | N26: 1
B27: O | C27: 1 | D27: 1 | E27: 0 | F27: 1 | G27: 0 | H27: 1 | I27: 1 | J27: 0 | K27: 1 | L27: 0 | M27: 0 | N27: 1
B28: P | C28: 1 | D28: 0 | E28: 1 | F28: 1 | G28: 0 | H28: 1 | I28: 1 | J28: 0 | K28: 1 | L28: 0 | M28: 0 | N28: 1
B29: Q | C29: 1 | D29: 0 | E29: 1 | F29: 0 | G29: 1 | H29: 0 | I29: 1 | J29: 1 | K29: 0 | L29: 0 | M29: 1 | N29: 1
B30: R | C30: 1 | D30: 1 | E30: 0 | F30: 1 | G30: 0 | H30: 1 | I30: 0 | J30: 1 | K30: 1 | L30: 0 | M30: 0 | N30: 1
B31: S | C31: 1 | D31: 0 | E31: 1 | F31: 1 | G31: 0 | H31: 1 | I31: 0 | J31: 1 | K31: 1 | L31: 0 | M31: 0 | N31: 1
B32: T | C32: 1 | D32: 0 | E32: 1 | F32: 0 | G32: 1 | H32: 1 | I32: 0 | J32: 1 | K32: 1 | L32: 0 | M32: 0 | N32: 1
B33: U | C33: 1 | D33: 1 | E33: 0 | F33: 0 | G33: 1 | H33: 0 | I33: 1 | J33: 0 | K33: 1 | L33: 0 | M33: 1 | N33: 1
B34: V | C34: 1 | D34: 0 | E34: 0 | F34: 1 | G34: 1 | H34: 0 | I34: 1 | J34: 0 | K34: 1 | L34: 0 | M34: 1 | N34: 1
B35: W | C35: 1 | D35: 1 | E35: 0 | F35: 0 | G35: 1 | H35: 1 | I35: 0 | J35: 1 | K35: 0 | L35: 1 | M35: 0 | N35: 1
B36: X | C36: 1 | D36: 0 | E36: 0 | F36: 1 | G36: 0 | H36: 1 | I36: 1 | J36: 0 | K36: 1 | L36: 0 | M36: 1 | N36: 1
B37: Y | C37: 1 | D37: 1 | E37: 0 | F37: 0 | G37: 1 | H37: 0 | I37: 1 | J37: 1 | K37: 0 | L37: 1 | M37: 0 | N37: 1
B38: Z | C38: 1 | D38: 0 | E38: 0 | F38: 1 | G38: 1 | H38: 0 | I38: 1 | J38: 1 | K38: 0 | L38: 1 | M38: 0 | N38: 1
B39: - | C39: 1 | D39: 0 | E39: 0 | F39: 1 | G39: 0 | H39: 1 | I39: 0 | J39: 1 | K39: 1 | L39: 0 | M39: 1 | N39: 1
B40: . | C40: 1 | D40: 1 | E40: 0 | F40: 0 | G40: 1 | H40: 0 | I40: 1 | J40: 0 | K40: 1 | L40: 1 | M40: 0 | N40: 1
C41: 1 | D41: 0 | E41: 0 | F41: 1 | G41: 1 | H41: 0 | I41: 1 | J41: 0 | K41: 1 | L41: 1 | M41: 0 | N41: 1
B42: $ | C42: 1 | D42: 0 | E42: 0 | F42: 1 | G42: 0 | H42: 0 | I42: 1 | J42: 0 | K42: 0 | L42: 1 | M42: 0 | N42: 1
B43: / | C43: 1 | D43: 0 | E43: 0 | F43: 1 | G43: 0 | H43: 0 | I43: 1 | J43: 0 | K43: 1 | L43: 0 | M43: 0 | N43: 1
B44: + | C44: 1 | D44: 0 | E44: 0 | F44: 1 | G44: 0 | H44: 1 | I44: 0 | J44: 0 | K44: 1 | L44: 0 | M44: 0 | N44: 1
B45: % | C45: 1 | D45: 0 | E45: 1 | F45: 0 | G45: 0 | H45: 1 | I45: 0 | J45: 0 | K45: 1 | L45: 0 | M45: 0 | N45: 1
B46: * | C46: 1 | D46: 0 | E46: 0 | F46: 1 | G46: 0 | H46: 1 | I46: 1 | J46: 0 | K46: 1 | L46: 1 | M46: 0 | N46: 1
B48: NW-7の符号化パターン
B49: 文字 | C49: 符号
B50: 0 | C50: 101010011
B51: 1 | C51: 101011001
B52: 2 | C52: 101001011
B53: 3 | C53: 110010101
B54: 4 | C54: 101101001
B55: 5 | C55: 110101001
B56: 6 | C56: 100101011
B57: 7 | C57: 100101101
B58: 8 | C58: 100110101
B59: 9 | C59: 110100101
B60: - | C60: 101001101
B61: $ | C61: 101100101
B62: : | C62: 1101011011
B63: / | C63: 1101101011
B64: . | C64: 1101101101
B65: + | C65: 1011011011
B66: A | C66: 1011001001
B67: B | C67: 1001001011
B68: C | C68: 1010010011
B69: D | C69: 1010011001
